bitfinex/quotes_ETHUSD_20240821
["timestamp","ask_amount","ask_price","bid_price","bid_amount"]
[1724222487233,3.969,2610.0,2609.6,0.03355467]
[1724222490952,3.969,2610.0,2609.6,2.29815467]
[1724222491165,3.969,2610.0,2609.7,0.55]
[1724222491465,3.969,2610.0,2609.8,0.6183114]
[1724222491667,3.969,2610.0,2609.8,0.03349593]
[1724222492186,3.969,2610.0,2609.9,0.03346657]
[1724222492386,3.969,2610.0,2609.7,0.55]
[1724222492387,3.969,2610.0,2609.6,2.2646]
[1724222492573,3.969,2610.0,2609.7,0.0335253]
[1724222492745,3.969,2610.0,2609.7,0.5835253]
[1724222493080,3.969,2610.0,2609.8,0.58481253]
[1724222493385,3.969,2610.0,2609.9,0.03346657]
[1724222498794,3.969,2610.0,2609.6,3.0]
[1724222498999,3.969,2610.0,2609.9,0.03346657]
[1724222499302,3.969,2610.0,2609.5,3.48250557]
[1724222499482,3.969,2610.0,2609.9,0.03346657]
[1724222499680,3.969,2610.0,2609.5,4.95675353]
[1724222499898,3.969,2610.0,2609.9,0.03346657]
[1724222500599,3.969,2610.0,2609.5,3.48250557]
[1724222500782,3.969,2610.0,2609.6,0.03355467]
[1724222500983,3.969,2609.7,2609.6,0.03355467]
[1724222501389,6.3609,2609.7,2609.6,0.03355467]
[1724222501917,6.3609,2609.7,2609.6,0.10006111]
[1724222503176,3.969,2609.7,2609.6,0.45126722]
[1724222506193,3.969,2609.7,2609.6,0.10006111]
[1724222512033,6.4595,2609.7,2609.6,0.10006111]
[1724222512610,6.4595,2609.7,2608.8,2.4311]
[1724222512611,2.3209,2609.6,2608.8,2.4311]
[1724222512960,3.969,2609.3,2608.9,15.15]
[1724222513112,3.969,2609.3,2608.9,7.74]
[1724222513640,3.969,2609.3,2609.0,1.35831]
[1724222516119,3.969,2609.3,2609.1,0.03370154]
[1724222516882,3.969,2609.3,2609.2,0.06357156]
[1724222518477,1.653,2609.3,2609.2,0.06357156]
[1724222519737,1.653,2609.3,2609.2,0.09724372]
[1724222520861,3.9524,2609.3,2609.2,0.09724372]
[1724222522672,6.2684,2609.3,2609.2,0.09724372]
[1724222532491,6.89524,2609.3,2609.2,0.09724372]
[1724222535067,3.969,2609.3,2609.2,0.09724372]
[1724222540486,6.2426,2609.3,2609.2,0.09724372]
[1724222541897,3.969,2609.3,2609.2,0.09724372]
[1724222542484,2.2736,2609.4,2609.2,0.09724372]
[1724222543275,1.654,2609.3,2609.2,0.09724372]
[1724222554944,1.654,2609.3,2608.8,3.412]
[1724222554945,2.2658,2609.2,2608.8,3.412]
[1724222555129,1.654,2608.9,2608.8,3.412]
[1724222557589,4.0027,2608.9,2608.3,2.0005574]
[1724222557788,1.654,2608.5,2608.4,1.88274926]
[1724222558437,1.654,2608.5,2608.4,1.90992208]
[1724222558716,1.654,2608.5,2608.4,1.36089423]
[1724222559037,1.654,2608.5,2608.4,0.02717282]
[1724222559816,1.654,2608.5,2608.1,9.41077457]
[1724222560021,1.654,2608.2,2608.1,9.41077457]
[1724222560231,1.654,2608.2,2608.1,3.36191052]
[1724222560429,1.654,2608.2,2608.1,2.34422865]
[1724222561151,1.654,2608.2,2608.1,1.01035703]
[1724222561714,1.654,2608.2,2608.1,2.34420715]
[1724222562007,1.654,2608.2,2608.1,1.06656345]
[1724222563047,1.654,2608.2,2608.1,0.08346744]
[1724222563846,4.0023,2608.2,2608.1,0.08346744]
[1724222564394,4.0023,2608.2,2607.4,2.3858]
[1724222564692,4.0023,2608.2,2607.5,0.02198527]
[1724222564894,1.654,2607.6,2607.5,0.02198527]
[1724222565139,1.654,2607.6,2607.5,0.2627638]
[1724222566344,1.654,2607.6,2607.5,0.02198527]
[1724222566702,1.654,2607.6,2607.2,9.8461]
[1724222566902,1.654,2607.3,2607.2,9.8461]
[1724222567221,1.654,2607.3,2607.2,9.86817352]
[1724222569013,1.654,2607.3,2607.2,7.43207352]
[1724222569218,1.654,2607.3,2607.2,10.35739087]
[1724222569419,1.654,2607.3,2607.2,2.94739087]
[1724222569600,1.654,2607.3,2607.2,0.02207352]
[1724222572340,1.654,2607.3,2607.2,0.06119486]
[1724222579570,2.4253,2607.4,2607.2,0.06119486]
[1724222579726,1.654,2607.3,2607.2,0.06119486]
[1724222583634,2.4253,2607.4,2607.2,0.06119486]
[1724222583828,1.654,2607.3,2607.2,0.06119486]
[1724222584833,3.0,2608.1,2607.2,0.06119486]
[1724222585035,3.0,2608.1,2607.2,2.36519486]
[1724222585036,1.654,2607.3,2607.2,2.36519486]
[1724222587293,3.0,2607.9,2607.2,2.36519486]
[1724222587578,1.654,2607.3,2607.2,2.36519486]
[1724222587935,1.654,2607.3,2607.2,6.01371435]
[1724222589202,1.654,2607.3,2607.2,6.56371435]
[1724222589541,1.654,2607.3,2607.2,6.54164083]
[1724222589748,1.654,2607.3,2607.2,6.5613984]
[1724222594320,1.654,2607.3,2607.2,4.2573984]
[1724222594683,1.654,2607.3,2607.2,3.7073984]
[1724222596936,1.654,2607.3,2607.2,3.47087891]
[1724222598736,1.654,2607.3,2607.2,3.46091664]
[1724222598943,2.3246,2607.5,2607.2,3.46091664]
[1724222599089,1.654,2607.3,2607.2,3.46091664]
[1724222599441,1.654,2607.3,2607.2,4.0536883]
[1724222601903,2.3618,2608.0,2607.2,6.3491883]
[1724222602239,1.654,2607.5,2607.2,6.3491883]
[1724222602404,2.3618,2608.0,2607.3,0.55]
[1724222602605,2.3618,2608.0,2607.4,0.68991883]
[1724222602806,1.654,2607.5,2607.4,0.74860829]
[1724222603037,1.654,2607.5,2607.4,1.29860829]
[1724222603851,1.654,2607.5,2607.4,0.74860829]
[1724222607529,1.654,2607.5,2607.4,0.05868946]
[1724222607731,2.4548,2608.4,2607.4,0.05868946]
[1724222608071,1.654,2607.5,2607.4,0.05868946]
[1724222613837,1.654,2607.5,2607.4,2.39368946]
[1724222614178,1.654,2607.5,2607.4,3.72786364]
[1724222614646,1.654,2607.5,2607.4,4.72077288]
[1724222615054,1.654,2607.5,2607.4,3.3865987]
[1724222616148,2.4548,2607.9,2607.4,3.3865987]
[1724222616346,7.27,2608.5,2607.5,0.55]
[1724222616550,1.654,2607.6,2607.5,0.55]
[1724222616768,1.654,2607.6,2607.5,0.94365987]
[1724222620395,1.654,2607.6,2607.5,0.96564514]
[1724222621097,1.654,2607.6,2607.5,0.57198527]
[1724222621649,1.654,2607.6,2607.5,0.6008264]
[1724222622099,1.654,2607.6,2607.5,0.0508264]
[1724222628899,1.654,2607.6,2607.5,1.38498241]
[1724222629078,1.654,2607.6,2607.5,0.0508264]
[1724222629487,1.654,2607.6,2607.5,1.38498394]
[1724222629663,1.654,2607.6,2607.5,1.80339156]
[1724222630386,1.654,2607.6,2607.5,3.80463427]
[1724222631520,1.654,2607.6,2607.5,0.46923402]
[1724222631793,1.654,2607.6,2607.5,1.80344081]
[1724222632558,1.654,2607.6,2607.5,0.46923402]
[1724222632759,1.654,2607.6,2607.5,0.0508264]
[1724222632959,1.654,2607.6,2607.5,1.38503196]
[1724222633379,1.654,2607.6,2607.5,3.3863403]
[1724222633609,1.654,2607.6,2607.5,1.38503196]
[1724222633820,1.654,2607.6,2607.5,3.3863403]
[1724222634487,1.654,2607.6,2607.5,1.38503196]
[1724222637200,4.1535,2607.6,2607.5,0.0508264]
[1724222640283,4.56885,2607.6,2607.5,0.0508264]
[1724222646915,4.56885,2607.6,2607.5,0.04270763]
[1724222647152,4.1535,2607.6,2607.5,0.04270763]
[1724222649430,2.2557,2607.5,2606.8,2.42194976]
[1724222649634,2.2557,2607.5,2606.7,2.00164862]
[1724222649635,1.654,2606.9,2606.7,2.00164862]
[1724222649829,1.654,2606.9,2606.8,1.33455628]
[1724222650033,1.654,2606.9,2606.8,1.33455311]
[1724222650246,1.654,2606.9,2606.7,1.76503515]
[1724222650453,1.654,2606.9,2606.8,1.33454978]
[1724222650668,1.654,2606.9,2606.7,1.76503515]
[1724222651053,1.654,2606.9,2606.8,1.33453732]
[1724222651267,1.654,2606.9,2606.6,6.20567424]
[1724222651423,2.2557,2607.1,2606.7,1.33455402]
[1724222651858,2.2557,2607.1,2606.8,0.02278532]
[1724222652064,1.654,2606.9,2606.8,0.02278532]
[1724222652267,1.654,2606.9,2606.7,1.33454236]
[1724222652480,2.2557,2607.1,2606.8,0.02278532]
[1724222652846,2.2557,2607.1,2606.7,1.11547594]
[1724222653159,2.2557,2607.1,2606.8,0.0405795]
[1724222654349,1.654,2606.9,2606.8,0.0405795]
[1724222659079,2.2913,2607.4,2606.8,0.0405795]
[1724222659247,2.2913,2607.4,2606.9,2.2865]
[1724222659447,2.2913,2607.4,2607.0,0.23270795]
[1724222659779,2.2913,2607.4,2607.0,0.25044327]
[1724222661780,1.654,2607.1,2607.0,0.25044327]
[1724222662276,3.0,2607.9,2607.0,0.25044327]
[1724222662491,1.654,2607.1,2607.0,0.25044327]
[1724222663739,2.3567,2607.8,2607.0,0.25044327]
[1724222663940,2.3567,2607.8,2607.1,3.0354]
[1724222664233,1.654,2607.5,2607.3,2.4854]
[1724222664385,1.654,2607.5,2607.4,0.55]
[1724222664593,1.654,2607.5,2607.4,0.56761763]
[1724222665085,2.4405,2608.1,2607.4,0.56761763]
[1724222665288,1.654,2607.6,2607.5,0.30530176]
[1724222665488,1.654,2607.6,2607.5,0.87288997]
[1724222666733,1.654,2607.6,2607.5,0.89401067]
[1724222669323,2.4515,2608.3,2607.5,3.19881067]
[1724222669627,1.654,2607.9,2607.7,2.3048]
[1724222670068,1.654,2607.9,2607.8,0.0385499]
[1724222678989,4.1517,2607.9,2607.8,0.0385499]
[1724222695557,2.4548,2608.3,2607.8,0.0385499]
[1724222695859,1.654,2607.9,2607.8,2.75139489]
[1724222696003,1.654,2607.9,2607.8,0.27259489]
[1724222696206,1.654,2607.9,2607.8,0.0385499]
[1724222697541,4.1539,2607.9,2607.8,0.0385499]
[1724222701024,4.1539,2607.9,2607.1,3.87]
[1724222701205,2.4999,2607.9,2607.2,0.55]
[1724222701410,1.654,2607.3,2607.2,0.55]
[1724222701635,1.654,2607.3,2607.2,1.96586]
[1724222701840,1.654,2607.3,2607.2,0.55]
[1724222702045,1.654,2607.3,2607.1,3.87]
[1724222702930,1.654,2607.3,2607.2,0.55]
[1724222704773,1.654,2607.3,2607.2,0.56767647]
[1724222707837,1.654,2607.3,2607.2,1.90193268]
[1724222708038,1.654,2607.3,2607.2,3.71951295]
[1724222708238,1.654,2607.3,2607.2,2.38525674]
[1724222708493,1.654,2607.3,2607.2,3.71952163]
[1724222709071,2.3858,2608.3,2607.2,3.71952163]
[1724222709272,1.654,2607.5,2607.3,6.74846489]
[1724222709483,1.654,2607.5,2607.4,3.26856176]
[1724222709683,1.654,2607.5,2607.4,3.28617939]
[1724222711145,1.654,2607.5,2607.4,1.9519145]
[1724222711341,1.654,2607.5,2607.4,0.01761763]
[1724222711962,1.654,2607.5,2607.4,0.03843055]
[1724222712163,1.654,2607.5,2607.2,0.55]
[1724222712387,2.3083,2607.6,2607.4,0.03836098]
[1724222713943,1.654,2607.5,2607.4,0.03836098]
[1724222714148,4.52746148,2607.5,2607.4,0.03836098]
[1724222716756,4.52746148,2607.5,2606.5,6.21988463]
[1724222716757,2.3785,2607.4,2606.5,6.21988463]
[1724222716957,2.3785,2607.2,2606.7,3.87]
[1724222718169,1.654,2606.8,2606.7,3.87]
[1724222718343,1.654,2606.8,2606.7,5.20452688]
[1724222718958,1.654,2606.8,2606.7,6.40571155]
[1724222719874,1.654,2606.8,2606.7,6.40571123]
[1724222720076,1.654,2606.8,2606.7,5.07118467]
[1724222720401,1.654,2606.8,2606.7,6.42356104]
[1724222721207,1.654,2606.8,2606.7,5.08900828]
[1724222722806,1.654,2606.8,2606.7,6.42353323]
[1724222722961,1.654,2606.8,2606.7,5.08900828]
[1724222723976,1.654,2606.8,2606.7,6.42352242]
[1724222724181,1.654,2606.8,2606.7,6.40569881]
[1724222724376,1.654,2606.8,2606.7,5.07118467]
[1724222726193,1.654,2606.8,2606.7,8.69778433]
[1724222726409,3.07703148,2608.2,2606.7,8.69778433]
[1724222726410,2.4829,2608.1,2606.8,2.2921]
[1724222726621,1.654,2607.1,2607.0,2.2921]
[1724222726768,1.654,2607.1,2607.0,3.62637331]
[1724222727112,1.654,2607.1,2607.0,4.17637331]
[1724222727312,1.654,2607.3,2607.0,8.53455358]
[1724222727614,1.654,2607.3,2607.1,1.88425541]
[1724222727913,1.654,2607.3,2607.1,0.55]
[1724222729511,1.654,2607.3,2607.2,2.4835]
[1724222729713,1.654,2607.5,2607.2,4.36769346]
[1724222729920,1.654,2607.6,2607.3,5.37592689]
[1724222730116,1.654,2607.6,2607.4,1.33410524]
[1724222730316,1.654,2607.6,2607.3,4.04176935]
[1724222730914,1.654,2607.4,2607.3,4.04176935]
[1724222731615,1.654,2607.4,2607.3,3.49176935]
[1724222731912,1.654,2607.4,2607.3,4.04176935]
[1724222732476,1.654,2607.4,2607.3,1.04176935]
[1724222732705,1.654,2607.4,2607.3,4.04176935]
[1724222733979,1.654,2607.4,2607.3,1.04176935]
[1724222734183,1.654,2607.4,2607.3,4.04176935]
[1724222734494,1.654,2607.4,2607.3,1.04176935]
[1724222734688,1.654,2607.4,2607.3,4.04176935]
[1724222734905,1.654,2607.4,2607.3,1.04176935]
[1724222737922,4.0268,2607.4,2607.3,1.04176935]
[1724222738723,4.0268,2607.4,2607.1,3.0]
[1724222738920,1.654,2607.2,2607.1,3.0]
[1724222739520,1.654,2607.2,2607.1,3.55]
[1724222740193,1.654,2607.2,2607.0,4.35818027]
[1724222740194,1.654,2607.2,2607.0,3.406]
[1724222740395,2.3728,2607.1,2607.0,3.406]
[1724222740708,2.3728,2607.1,2606.9,3.87]
[1724222741581,1.654,2607.0,2606.9,3.87]
[1724222743359,1.654,2607.0,2606.6,19.006]
[1724222743512,2.3728,2607.1,2606.6,15.136]
[1724222744737,1.654,2606.7,2606.6,18.59698496]
[1724222744934,1.654,2606.7,2606.6,22.48331914]
[1724222745106,1.654,2606.7,2606.6,23.48151863]
[1724222745310,1.654,2606.7,2606.6,22.93151863]
[1724222746216,1.654,2606.7,2606.6,15.52151863]
[1724222746419,1.654,2606.7,2606.6,10.726]
[1724222746613,1.654,2606.7,2606.6,12.06054087]
[1724222746918,4.0797,2606.7,2606.6,3.0]
[1724222747358,4.0797,2606.7,2606.5,3.0]
[1724222747513,2.4257,2606.7,2606.5,4.08270456]
[1724222747715,2.4257,2606.7,2606.4,3.406]
[1724222747912,1.654,2606.6,2606.4,3.406]
[1724222748331,2.4257,2607.0,2606.5,3.83145104]
[1724222748565,2.4257,2607.0,2606.5,2.4968]
[1724222751371,2.4257,2607.0,2606.4,3.406]
[1724222752375,2.4257,2607.0,2606.4,4.02657692]
[1724222752920,2.4257,2607.0,2606.5,0.55]
[1724222753779,2.2797,2606.8,2606.4,4.02657692]
[1724222753933,2.2797,2606.8,2606.4,3.406]
[1724222760759,2.2797,2606.8,2606.2,6.66986528]
[1724222760979,7.27,2607.6,2606.3,10.73526712]
[1724222760980,2.451,2607.0,2606.3,10.73526712]
[1724222761192,3.974,2606.9,2606.4,1.33466712]
[1724222761397,2.2714,2606.5,2606.3,6.406]
[1724222761608,3.974,2607.0,2606.3,3.406]
[1724222761756,2.2714,2606.9,2606.4,1.09080772]
[1724222768568,2.4922,2608.1,2606.5,3.8328333]
[1724222768783,3.974,2607.7,2606.9,2.4982]
[1724222768984,3.974,2607.7,2606.9,5.9042]
[1724222768985,2.8896,2607.6,2606.9,5.9042]
[1724222769193,2.4922,2607.6,2607.0,0.55]
[1724222770529,1.656,2607.1,2607.0,0.55]
[1724222770926,1.656,2607.1,2606.9,3.406]
[1724222772134,1.656,2607.1,2606.9,0.186]
[1724222774528,2.4945,2607.2,2606.9,0.186]
[1724222774703,2.4945,2607.2,2606.9,1.2772]
[1724222777825,2.4945,2607.2,2606.9,0.186]
[1724222778813,3.974,2607.1,2606.9,0.186]
[1724222779838,2.4945,2607.2,2606.9,0.186]
[1724222780771,6.2573,2607.4,2606.9,0.186]
[1724222782851,6.4157,2607.7,2606.9,0.186]
[1724222783183,6.4157,2607.7,2607.0,0.55]
[1724222783659,6.4157,2607.7,2607.1,2.3335]
[1724222784681,6.4157,2607.7,2607.2,1.33427166]
[1724222784836,6.4157,2607.7,2607.1,2.3335]
[1724222785036,6.4157,2607.7,2607.2,1.33425767]
[1724222785270,6.4157,2607.7,2607.3,0.36677577]
[1724222787886,6.4157,2607.7,2607.0,3.55]
[1724222788258,2.3053,2607.3,2607.0,3.55]
[1724222788459,2.3053,2607.3,2606.9,4.80015197]
[1724222790987,2.3239,2607.5,2607.0,2.3846]
[1724222791192,3.974,2607.7,2607.0,2.3846]
[1724222791193,3.974,2607.7,2607.0,6.8440752]
[1724222791346,3.974,2607.7,2607.1,0.55]
[1724222795711,3.974,2607.4,2607.0,3.0]
[1724222795894,3.974,2607.4,2606.9,3.186]
[1724222796097,3.974,2607.4,2606.9,5.0182]
[1724222798471,3.974,2607.7,2607.0,4.15721584]
[1724222798673,3.974,2607.7,2607.0,2.8229]
[1724222804861,3.974,2607.7,2607.1,1.33431747]
[1724222805028,3.974,2607.7,2607.2,0.41572175]
[1724222808352,3.974,2607.7,2607.0,2.8229]
[1724222808564,2.2729,2607.8,2607.0,2.8229]
[1724222808565,1.656,2607.1,2607.0,2.8229]
[1724222808720,1.656,2607.1,2607.0,7.15724354]
[1724222810348,1.656,2607.1,2607.0,7.15728225]
[1724222810656,1.656,2607.1,2607.0,5.8229]
[1724222810863,1.656,2607.1,2607.0,3.55]
[1724222811163,1.656,2607.1,2607.0,3.0]
[1724222811365,1.656,2607.1,2606.9,3.186]
[1724222813564,1.656,2607.1,2607.0,1.33443678]
[1724222813981,1.656,2607.1,2606.9,5.18769321]
[1724222814375,1.656,2607.1,2607.0,1.33444501]
[1724222814891,1.656,2607.1,2606.9,5.18771276]
[1724222815847,2.4045,2607.0,2606.8,3.87]
[1724222816047,1.656,2606.9,2606.8,3.87]
[1724222816672,4.0465,2606.9,2606.8,3.87]
[1724222818445,6.3665,2606.9,2606.8,3.87]
[1724222820673,3.976,2606.9,2606.3,1.796]
[1724222820877,2.4592,2606.8,2606.3,4.796]
[1724222824311,6.2879,2607.0,2606.3,7.1035]
[1724222831905,2.3371,2606.6,2606.3,1.796]
[1724222837541,2.57081,2606.6,2606.3,1.796]
[1724222838419,1.657,2606.4,2606.3,1.796]
[1724222842667,1.657,2606.4,2606.1,3.87]
[1724222844995,1.657,2606.2,2606.1,3.87]
[1724222847398,3.9311,2606.2,2606.1,3.87]
[1724222847667,4.32421,2606.2,2605.7,1.796]
[1724222847990,1.657,2605.8,2605.7,1.796]
[1724222848677,1.657,2606.0,2605.7,1.796]
[1724222848880,1.657,2606.2,2605.8,2.4531]
[1724222849596,2.2834,2606.4,2605.8,4.1101]
[1724222849827,2.51174,2606.4,2605.8,4.1101]
[1724222850139,2.51174,2606.4,2605.8,2.4531]
[1724222852488,2.4007,2606.2,2605.7,1.796]
[1724222852698,2.4007,2606.0,2605.7,1.796]
[1724222852900,2.80647,2606.0,2605.7,1.796]
[1724222855451,2.80647,2606.0,2605.3,3.0]
[1724222855452,2.496,2605.8,2605.3,3.0]
[1724222855737,1.73403148,2605.7,2605.2,3.87]
[1724222856041,2.496,2605.6,2605.2,3.87]
[1724222860205,2.7456,2605.6,2605.0,1.796]
[1724222862948,2.4522,2605.4,2605.0,1.796]
[1724222863962,0.2496,2605.6,2604.8,1.04119116]
[1724222863963,2.4756,2605.2,2604.8,1.04119116]
[1724222864168,0.07703148,2605.1,2604.8,1.04119116]
[1724222864310,2.4756,2605.2,2604.8,1.04119116]
[1724222864711,3.0,2605.7,2604.8,1.04119116]
[1724222865023,2.4756,2605.6,2604.8,3.43429116]
[1724222865243,3.75016,2605.6,2604.8,3.43429116]
[1724222865439,2.4058,2605.5,2604.8,1.04119116]
[1724222874108,2.4058,2605.5,2604.8,3.49059116]
[1724222875252,2.4058,2605.5,2604.8,1.04119116]
[1724222885890,0.07703148,2605.4,2604.8,1.04119116]
[1724222886043,2.4624,2605.3,2604.8,1.04119116]
[1724222886239,2.4624,2605.1,2604.8,1.04119116]
[1724222886479,2.4624,2604.9,2604.8,1.04119116]
[1724222897113,2.53943148,2604.9,2604.8,1.04119116]
[1724222897454,2.4624,2604.9,2604.8,1.04119116]
[1724222899098,5.4624,2604.9,2604.8,1.04119116]
[1724222899311,6.70644,2604.9,2604.8,1.04119116]
[1724222902006,5.4624,2604.9,2604.8,1.04119116]
[1724222902149,2.4624,2604.9,2604.8,1.04119116]
[1724222906504,7.27,2605.5,2604.8,1.04119116]
[1724222906505,2.4325,2605.4,2604.8,1.04119116]
[1724222911322,3.978,2605.6,2604.8,1.04119116]
[1724222911323,2.2872,2605.2,2604.8,1.04119116]
[1724222911662,5.2872,2605.2,2604.8,1.04119116]
[1724222911973,2.2872,2605.2,2604.8,1.04119116]
[1724222912138,3.0,2605.1,2604.8,1.04119116]
[1724222912483,2.2872,2605.2,2604.8,1.04119116]
[1724222912683,2.265,2605.0,2604.8,1.04119116]
[1724222914838,0.22872,2605.1,2604.8,1.04119116]
[1724222915040,3.0,2605.1,2604.8,1.04119116]
[1724222915185,2.3899,2605.2,2604.8,1.04119116]
[1724222916653,0.07703148,2605.1,2604.8,1.04119116]
[1724222916822,2.3529,2605.0,2604.8,1.04119116]
[1724222917155,0.24299315,2604.9,2604.8,1.04119116]
[1724222918429,0.24299315,2604.9,2604.8,1.03977313]
[1724222922722,10.27,2605.4,2604.8,1.03977313]
[1724222922723,2.4891,2605.3,2604.8,1.03977313]
[1724222927043,0.07703148,2605.2,2604.8,1.03977313]
[1724222927248,2.287,2605.1,2604.8,1.03977313]
[1724222927459,3.62703148,2605.2,2604.8,1.03977313]
[1724222927460,2.287,2604.9,2604.8,1.03977313]
[1724222927655,2.52340315,2604.9,2604.8,1.03977313]
[1724222927873,3.23640315,2604.9,2604.8,1.03977313]
[1724222928088,3.0,2605.1,2604.8,1.03977313]
[1724222928541,2.287,2605.2,2604.8,1.03977313]
[1724222932501,0.07703148,2605.1,2604.8,1.03977313]
[1724222932814,2.287,2605.2,2604.8,1.03977313]
[1724222934713,3.0,2605.3,2604.8,1.03977313]
[1724222934930,4.39691,2605.3,2604.8,1.03977313]
[1724222935574,0.07703148,2605.2,2604.8,1.03977313]
[1724222935968,4.39691,2605.3,2604.8,1.03977313]
[1724222936320,2.2598,2605.1,2604.8,1.03977313]
[1724222940795,6.66081,2605.3,2604.8,1.03977313]
[1724222940972,1.44853274,2605.2,2604.8,1.03977313]
[1724222944709,1.44853274,2605.2,2604.9,2.3446]
[1724222950079,3.0,2605.3,2604.9,2.3446]
[1724222950291,7.27,2605.4,2604.9,2.3446]
[1724222951359,9.7143,2605.7,2604.9,2.3446]
[1724222951581,3.0,2605.6,2604.9,2.3446]
[1724222961407,2.2929,2605.5,2604.8,1.03977313]
[1724222961753,3.56433,2605.5,2604.8,1.03977313]
[1724222961911,3.0,2605.4,2604.8,1.03977313]
[1724222962950,0.07703148,2605.3,2604.8,1.03977313]
[1724222963129,3.0,2605.4,2604.8,1.03977313]
[1724222963130,0.07703148,2605.2,2604.8,1.03977313]
[1724222963309,3.001333,2605.3,2604.8,1.03977313]
[1724222963498,3.0,2605.2,2604.8,1.03977313]
[1724222970561,4.659,2605.2,2604.8,1.03977313]
[1724222971478,1.659,2605.0,2604.8,1.03977313]
[1724222973374,0.4659,2605.0,2604.8,1.03977313]
[1724222975091,3.0,2605.2,2604.9,2.4848]
[1724222975294,0.656433,2605.3,2604.9,2.4848]
[1724222976258,0.656433,2605.3,2604.8,1.03977313]
[1724222976963,2.4348,2605.2,2604.8,1.03977313]
[1724222977189,0.3091233,2605.1,2604.8,1.03977313]
[1724222977590,3.3091233,2605.1,2604.8,1.03977313]
[1724222979585,0.3091233,2605.1,2604.8,1.03977313]
[1724222981787,0.38615478,2605.1,2604.8,1.03977313]
[1724222981992,2.76805478,2605.1,2604.8,1.03977313]
[1724222982239,0.74270548,2605.0,2604.8,1.03977313]
[1724222985411,2.4966,2604.9,2604.8,1.03977313]
[1724222985595,0.74270548,2605.0,2604.8,1.03977313]
[1724222988882,2.8057233,2605.1,2604.8,1.03977313]
[1724222989237,2.4966,2605.1,2604.8,1.03977313]
[1724222989385,5.4966,2605.1,2604.8,1.03977313]
[1724222989826,2.4966,2605.1,2604.8,1.03977313]
[1724222992535,3.0,2605.2,2604.8,1.03977313]
[1724222992729,1.659,2605.3,2604.8,1.03977313]
[1724222992730,3.0,2605.3,2604.8,1.03977313]
[1724222993103,2.3802,2605.4,2604.8,1.03977313]
[1724222993326,0.53802,2605.3,2604.8,1.03977313]
[1724222993527,3.53802,2605.3,2604.8,1.03977313]
[1724222993730,3.53802,2605.3,2604.9,2.3811]
[1724222994887,5.19702,2605.3,2604.8,1.03977313]
[1724222998389,0.07703148,2605.2,2604.8,1.03977313]
[1724222998691,1.659,2605.1,2604.8,1.03977313]
[1724222998894,0.07703148,2605.0,2604.8,1.03977313]
[1724223000726,4.659,2605.1,2604.8,1.03977313]
[1724223000932,3.0,2605.2,2604.8,1.03977313]
[1724223001131,3.0,2605.3,2604.9,2.4881]
[1724223001323,2.3802,2605.4,2604.9,2.4881]
[1724223001324,5.3802,2605.4,2604.9,2.4881]
[1724223002299,6.9275227,2605.4,2604.9,2.4881]
[1724223002735,1.659,2605.3,2604.8,1.03977313]
[1724223002935,0.07703148,2605.2,2604.8,1.03977313]
[1724223005652,4.659,2605.3,2604.8,1.03977313]
[1724223005833,3.0,2605.3,2604.8,1.03977313]
[1724223006038,3.0,2605.5,2604.9,0.33210731]
[1724223006443,5.2864,2605.6,2604.9,0.33210731]
[1724223006847,1.659,2605.5,2604.9,0.33210731]
[1724223007160,3.0,2605.5,2604.8,1.03977313]
[1724223007359,5.82397915,2605.5,2604.8,1.03977313]
[1724223007661,3.0,2605.5,2604.8,1.03977313]
[1724223008845,5.82397915,2605.5,2604.8,1.03977313]
[1724223009019,0.81103792,2605.4,2604.8,1.03977313]
[1724223009214,1.659,2605.3,2604.8,1.03977313]
[1724223010261,3.0,2605.4,2604.9,2.3462]
[1724223010460,3.0,2605.5,2604.9,2.3462]
[1724223010756,3.0,2605.5,2604.9,2.85069731]
[1724223012272,2.82397915,2605.8,2605.2,1.659]
[1724223012426,5.62822538,2606.1,2605.5,2.3331]
[1724223012427,2.2924,2606.1,2605.5,2.3331]
[1724223012757,3.9514,2606.1,2605.5,2.3331]
[1724223012921,1.659,2605.9,2605.5,2.3331]
[1724223013122,1.659,2605.9,2605.1,2.4218]
[1724223014439,1.659,2605.9,2605.1,4.0808]
[1724223019090,2.2974,2605.8,2605.1,4.0808]
[1724223021312,2.2974,2605.8,2605.1,2.4218]
[1724223021613,2.2974,2605.8,2605.0,7.41]
[1724223021614,1.659,2605.2,2605.0,7.41]
[1724223021920,1.659,2605.2,2604.6,2.3255]
[1724223021921,2.2972,2605.3,2604.6,2.3255]
[1724223022398,2.2972,2605.3,2604.7,1.659]
[1724223024592,2.2972,2605.3,2604.6,2.3255]
[1724223027773,2.2972,2605.3,2604.8,1.659]
[1724223027979,2.69282,2605.3,2604.8,1.659]
[1724223028565,2.2972,2605.3,2604.8,1.659]
[1724223028773,2.3629,2605.5,2605.0,1.659]
[1724223028973,3.0,2605.6,2605.0,4.0485]
[1724223029313,9.6329,2605.7,2605.0,4.0485]
[1724223030072,5.3426,2605.9,2605.2,1.659]
[1724223030277,5.3426,2605.9,2605.2,2.06385]
[1724223031972,5.3426,2605.9,2605.3,0.07987157]
[1724223033034,3.0,2605.9,2605.4,3.9238]
[1724223033314,3.0,2606.0,2605.4,3.9238]
[1724223033522,2.4301,2606.1,2605.5,0.40036716]
[1724223035682,2.4301,2606.1,2605.6,0.00637352]